[Event "*** Titled Tuesday Blitz"]
[Site "Chess.com"]
[Date "2020.05.12"]
[Round "5"]
[White "Shankovskyi"]
[Black "AGW2016"]
[Result "0-1"]
[WhiteElo "2523"]
[BlackElo "2130"]
[TimeControl "180+1"]
[EndTime "10:55:46 PDT"]
[Termination "AGW2016 won by resignation"]

1. e4 {[%clk 0:03:00.9]} 1... c5 {[%clk 0:03:00.3]} 2. Nf3 {[%clk 0:03:00.2]}
2... d6 {[%clk 0:03:00.3]} 3. d4 {[%clk 0:02:59.8]} 3... cxd4 {[%clk 0:03:01.2]}
4. Nxd4 {[%clk 0:03:00.5]} 4... Nf6 {[%clk 0:03:01.9]} 5. f3 {[%clk 0:03:01.2]}
5... Nc6 {[%clk 0:03:02.4]} 6. c4 {[%clk 0:03:00]} 6... e6 {[%clk 0:03:02.3]} 7.
Nc3 {[%clk 0:03:00.2]} 7... Be7 {[%clk 0:03:02.7]} 8. Be3 {[%clk 0:03:00.5]}
8... O-O {[%clk 0:03:03.2]} 9. Nc2 {[%clk 0:03:00.7]} 9... a6 {[%clk 0:02:58.2]}
10. Be2 {[%clk 0:03:00.9]} 10... Qc7 {[%clk 0:02:57.9]} 11. O-O {[%clk 0:03:00]}
11... Ne5 {[%clk 0:02:56.6]} 12. Na3 {[%clk 0:02:58.2]} 12... Bd7 {[%clk
0:02:55.9]} 13. Rc1 {[%clk 0:02:57.5]} 13... Rfd8 {[%clk 0:02:47.5]} 14. Qe1
{[%clk 0:02:55.8]} 14... Qa5 {[%clk 0:02:33.2]} 15. Nd5 {[%clk 0:02:44]} 15...
Qxe1 {[%clk 0:02:27.5]} 16. Nxe7+ {[%clk 0:02:43.8]} 16... Kf8 {[%clk
0:02:28.1]} 17. Rfxe1 {[%clk 0:02:44.4]} 17... Kxe7 {[%clk 0:02:27]} 18. Red1
{[%clk 0:02:43.6]} 18... Rac8 {[%clk 0:02:19.2]} 19. Kf2 {[%clk 0:02:41]} 19...
Bc6 {[%clk 0:02:17.5]} 20. h3 {[%clk 0:02:31.6]} 20... d5 {[%clk 0:02:10.7]} 21.
Bb6 {[%clk 0:02:16.4]} 21... Rd7 {[%clk 0:02:09.2]} 22. cxd5 {[%clk 0:02:15.1]}
22... exd5 {[%clk 0:02:09.1]} 23. exd5 {[%clk 0:02:03.9]} 23... Rxd5 {[%clk
0:02:08.2]} 24. Rxd5 {[%clk 0:01:42.8]} 24... Nxd5 {[%clk 0:02:06.8]} 25. Bd4
{[%clk 0:01:30.4]} 25... f6 {[%clk 0:02:00.3]} 26. Bxe5 {[%clk 0:01:12.2]} 26...
fxe5 {[%clk 0:01:57.3]} 27. Bd3 {[%clk 0:01:12.7]} 27... h6 {[%clk 0:01:56.8]}
28. Be4 {[%clk 0:01:12.7]} 28... Nb4 {[%clk 0:01:53.5]} 29. Bb1 {[%clk
0:00:53.8]} 29... Rd8 {[%clk 0:01:51.1]} 30. Re1 {[%clk 0:00:52.6]} 30... Kf6
{[%clk 0:01:49.1]} 31. Nc4 {[%clk 0:00:51.6]} 31... Nd3+ {[%clk 0:01:23.6]} 32.
Bxd3 {[%clk 0:00:49.7]} 32... Rxd3 {[%clk 0:01:24.5]} 33. Rxe5 {[%clk
0:00:39.1]} 33... Bb5 {[%clk 0:01:13.7]} 34. Re4 {[%clk 0:00:24.3]} 34... Bxc4
{[%clk 0:01:12.3]} 35. Rxc4 {[%clk 0:00:24.1]} 35... Rd2+ {[%clk 0:01:13.2]} 36.
Kg3 {[%clk 0:00:22.6]} 36... Rxb2 {[%clk 0:01:13.3]} 37. a4 {[%clk 0:00:22.8]}
37... b5 {[%clk 0:01:02.7]} 38. Rc6+ {[%clk 0:00:21.9]} 38... Kg5 {[%clk
0:00:58.9]} 39. Rxa6 {[%clk 0:00:22.8]} 39... b4 {[%clk 0:00:57.6]} 40. Rb6
{[%clk 0:00:21]} 40... b3 {[%clk 0:00:57.7]} 41. a5 {[%clk 0:00:20.5]} 41... Ra2
{[%clk 0:00:56.4]} 42. h4+ {[%clk 0:00:19.7]} 42... Kf5 {[%clk 0:00:55.2]} 43.
Rb5+ {[%clk 0:00:20.1]} 43... Kf6 {[%clk 0:00:53.4]} 44. Rxb3 {[%clk 0:00:21]}
44... Rxa5 {[%clk 0:00:53.2]} 45. Rb6+ {[%clk 0:00:21.1]} 45... Kf5 {[%clk
0:00:52.9]} 46. Rb7 {[%clk 0:00:20.5]} 46... Kf6 {[%clk 0:00:51.9]} 47. Kh3
{[%clk 0:00:20]} 47... Ra3 {[%clk 0:00:51.3]} 48. Rb6+ {[%clk 0:00:20.4]} 48...
Kf5 {[%clk 0:00:51.2]} 49. Rb5+ {[%clk 0:00:20.6]} 49... Kf6 {[%clk 0:00:51.5]}
50. Rc5 {[%clk 0:00:21.5]} 50... Rb3 {[%clk 0:00:51.3]} 51. Rc4 {[%clk
0:00:21.8]} 51... Rb2 {[%clk 0:00:51.4]} 52. Rf4+ {[%clk 0:00:22.2]} 52... Kg6
{[%clk 0:00:51.4]} 53. Re4 {[%clk 0:00:21.1]} 53... Kf6 {[%clk 0:00:50.5]} 54.
Rc4 {[%clk 0:00:21.3]} 54... Ra2 {[%clk 0:00:50]} 55. Rc6+ {[%clk 0:00:21.6]}
55... Kf7 {[%clk 0:00:50.1]} 56. Rc5 {[%clk 0:00:22.5]} 56... Rb2 {[%clk
0:00:49.3]} 57. h5 {[%clk 0:00:22.3]} 57... Kf6 {[%clk 0:00:49.5]} 58. g3 {[%clk
0:00:22.3]} 58... Rb3 {[%clk 0:00:49.3]} 59. Kg4 {[%clk 0:00:22.2]} 59... Rb4+
{[%clk 0:00:49.4]} 60. f4 {[%clk 0:00:22.7]} 60... Rb6 {[%clk 0:00:49.1]} 61.
Rf5+ {[%clk 0:00:23]} 61... Ke7 {[%clk 0:00:47.9]} 62. Re5+ {[%clk 0:00:22.8]}
62... Kf7 {[%clk 0:00:48]} 63. Kf5 {[%clk 0:00:22.4]} 63... Rf6+ {[%clk
0:00:48.2]} 64. Kg4 {[%clk 0:00:22.7]} 64... Ra6 {[%clk 0:00:48.7]} 65. Ra5
{[%clk 0:00:23.2]} 65... Rxa5 {[%clk 0:00:48.7]} 0-1

[Event "*** Titled Tuesday Blitz"]
[Site "Chess.com"]
[Date "2020.05.12"]
[Round "5"]
[White "joppie2"]
[Black "Firehand33"]
[Result "1-0"]
[WhiteElo "2882"]
[BlackElo "2726"]
[TimeControl "180+1"]
[EndTime "10:55:48 PDT"]
[Termination "joppie2 won by resignation"]

1. e4 {[%clk 0:02:59.3]} 1... d5 {[%clk 0:03:00.1]} 2. exd5 {[%clk 0:02:53.6]}
2... Qxd5 {[%clk 0:03:00.2]} 3. Nc3 {[%clk 0:02:54.2]} 3... Qd8 {[%clk
0:03:00.8]} 4. d4 {[%clk 0:02:54.6]} 4... Nf6 {[%clk 0:03:01.5]} 5. Nf3 {[%clk
0:02:55.1]} 5... g6 {[%clk 0:03:02.1]} 6. Bf4 {[%clk 0:02:52.8]} 6... Bg7 {[%clk
0:03:02.5]} 7. Qd2 {[%clk 0:02:53.2]} 7... O-O {[%clk 0:02:57.9]} 8. O-O-O
{[%clk 0:02:52.1]} 8... Nc6 {[%clk 0:02:53.7]} 9. d5 {[%clk 0:02:44.6]} 9... Nb4
{[%clk 0:02:53.1]} 10. a3 {[%clk 0:02:44.4]} 10... Na6 {[%clk 0:02:46.3]} 11.
Bh6 {[%clk 0:02:42.9]} 11... Bg4 {[%clk 0:02:43.2]} 12. Be2 {[%clk 0:02:39.8]}
12... Nc5 {[%clk 0:02:38.6]} 13. Bxg7 {[%clk 0:02:37]} 13... Kxg7 {[%clk
0:02:38.6]} 14. h3 {[%clk 0:02:34.9]} 14... Bxf3 {[%clk 0:02:33.8]} 15. Bxf3
{[%clk 0:02:35.8]} 15... Qd6 {[%clk 0:02:19.5]} 16. Rhe1 {[%clk 0:02:32.4]}
16... Rfe8 {[%clk 0:02:09.3]} 17. g4 {[%clk 0:02:30.4]} 17... Rad8 {[%clk
0:01:59.7]} 18. g5 {[%clk 0:02:20.6]} 18... Nfd7 {[%clk 0:01:59.5]} 19. h4
{[%clk 0:02:15.6]} 19... Ne5 {[%clk 0:01:51]} 20. Bg2 {[%clk 0:02:06.8]} 20...
Ned3+ {[%clk 0:01:41.1]} 21. Kb1 {[%clk 0:02:03.1]} 21... Nxe1 {[%clk 0:01:41]}
22. Rxe1 {[%clk 0:02:04]} 22... c6 {[%clk 0:01:33.9]} 23. b4 {[%clk 0:01:41.2]}
23... Nd7 {[%clk 0:01:30.2]} 24. Qd4+ {[%clk 0:01:40.2]} 24... e5 {[%clk
0:01:29.4]} 25. Qe3 {[%clk 0:01:08.9]} 25... cxd5 {[%clk 0:01:15.5]} 26. Nxd5
{[%clk 0:01:08.6]} 26... Nb6 {[%clk 0:01:14.7]} 27. Nf6 {[%clk 0:01:07.2]} 27...
Re6 {[%clk 0:01:07.5]} 28. h5 {[%clk 0:01:06.7]} 28... Nc4 {[%clk 0:00:50.4]}
29. h6+ {[%clk 0:01:06.5]} 29... Kh8 {[%clk 0:00:50]} 30. Qc3 {[%clk 0:01:00.4]}
30... Qd2 {[%clk 0:00:45.8]} 31. Qxd2 {[%clk 0:00:55.3]} 31... Nxd2+ {[%clk
0:00:45.8]} 32. Kc1 {[%clk 0:00:52.7]} 32... b5 {[%clk 0:00:35.4]} 33. Bh3
{[%clk 0:00:32.8]} 33... Red6 {[%clk 0:00:34.7]} 34. Rxe5 {[%clk 0:00:29.2]}
34... Nc4 {[%clk 0:00:34.3]} 35. Re1 {[%clk 0:00:29.1]} 35... Nxa3 {[%clk
0:00:33.9]} 36. Bd7 {[%clk 0:00:26.3]} 36... a6 {[%clk 0:00:27.1]} 37. Re7
{[%clk 0:00:24.9]} 37... Nc4 {[%clk 0:00:16.9]} 38. Rxf7 {[%clk 0:00:23.4]}
38... Rxf6 {[%clk 0:00:17.2]} 39. gxf6 {[%clk 0:00:16.6]} 39... Ne5 {[%clk
0:00:17.3]} 40. Re7 {[%clk 0:00:16.9]} 40... Nxd7 {[%clk 0:00:17.1]} 41. f7
{[%clk 0:00:17.4]} 41... Nf6 {[%clk 0:00:16.6]} 42. Re6 {[%clk 0:00:14.7]} 42...
Nd7 {[%clk 0:00:14.5]} 43. Re8+ {[%clk 0:00:13.7]} 1-0

[Event "*** Titled Tuesday Blitz"]
[Site "Chess.com"]
[Date "2020.05.12"]
[Round "5"]
[White "snowlord"]
[Black "DanielRensch"]
[Result "0-1"]
[WhiteElo "2739"]
[BlackElo "2511"]
[TimeControl "180+1"]
[EndTime "10:55:49 PDT"]
[Termination "DanielRensch won by resignation"]

1. e4 {[%clk 0:03:00]} 1... c5 {[%clk 0:02:58.5]} 2. Nf3 {[%clk 0:03:00.2]} 2...
d6 {[%clk 0:02:55.8]} 3. d4 {[%clk 0:03:00.2]} 3... cxd4 {[%clk 0:02:53.9]} 4.
Nxd4 {[%clk 0:03:01.1]} 4... Nf6 {[%clk 0:02:53.6]} 5. Nc3 {[%clk 0:03:01.8]}
5... a6 {[%clk 0:02:54.5]} 6. Be3 {[%clk 0:03:01.7]} 6... e6 {[%clk 0:02:53]} 7.
Be2 {[%clk 0:03:00]} 7... Be7 {[%clk 0:02:52.1]} 8. f4 {[%clk 0:02:59.6]} 8...
O-O {[%clk 0:02:51.8]} 9. g4 {[%clk 0:02:59.7]} 9... Nc6 {[%clk 0:02:51.5]} 10.
g5 {[%clk 0:02:59.7]} 10... Nd7 {[%clk 0:02:51]} 11. h4 {[%clk 0:02:57.3]} 11...
Nxd4 {[%clk 0:02:48.2]} 12. Qxd4 {[%clk 0:02:58.2]} 12... e5 {[%clk 0:02:48.7]}
13. Qd2 {[%clk 0:02:57.8]} 13... exf4 {[%clk 0:02:48]} 14. Bxf4 {[%clk
0:02:58.7]} 14... Ne5 {[%clk 0:02:48]} 15. O-O-O {[%clk 0:02:56.4]} 15... Be6
{[%clk 0:02:48]} 16. Kb1 {[%clk 0:02:50.4]} 16... Re8 {[%clk 0:02:25.1]} 17. h5
{[%clk 0:02:45.5]} 17... Bf8 {[%clk 0:02:16.3]} 18. g6 {[%clk 0:02:28.8]} 18...
hxg6 {[%clk 0:02:07.8]} 19. hxg6 {[%clk 0:02:04.5]} 19... Nxg6 {[%clk
0:02:08.7]} 20. Bg5 {[%clk 0:01:40.7]} 20... Qa5 {[%clk 0:02:06.2]} 21. Bd3
{[%clk 0:01:00.2]} 21... f6 {[%clk 0:01:37]} 22. e5 {[%clk 0:00:49.9]} 22...
Nxe5 {[%clk 0:01:32.5]} 23. Bxf6 {[%clk 0:00:50]} 23... gxf6 {[%clk 0:01:15.9]}
24. Rdg1+ {[%clk 0:00:48.3]} 24... Ng4 {[%clk 0:00:51.7]} 25. Qh2 {[%clk
0:00:19.6]} 25... Bg7 {[%clk 0:00:43.4]} 26. Qh7+ {[%clk 0:00:19]} 26... Kf8
{[%clk 0:00:43.1]} 27. Bc4 {[%clk 0:00:09.9]} 27... Qf5 {[%clk 0:00:13.3]} 28.
Qh4 {[%clk 0:00:04.9]} 28... Bxc4 {[%clk 0:00:09.2]} 29. Rxg4 {[%clk 0:00:05]}
29... Bg8 {[%clk 0:00:05.4]} 30. Rhg1 {[%clk 0:00:03.2]} 30... Re7 {[%clk
0:00:04.9]} 31. a3 {[%clk 0:00:03.5]} 31... Rae8 {[%clk 0:00:04.5]} 32. Qg3
{[%clk 0:00:03.8]} 32... Qe5 {[%clk 0:00:04]} 33. Rxg7 {[%clk 0:00:03.1]} 33...
Qxg3 {[%clk 0:00:03.9]} 34. R7xg3 {[%clk 0:00:04]} 34... Re1+ {[%clk 0:00:03.3]}
35. Rxe1 {[%clk 0:00:03.6]} 0-1

[Event "*** Titled Tuesday Blitz"]
[Site "Chess.com"]
[Date "2020.05.12"]
[Round "5"]
[White "ALeks_Ivlev"]
[Black "Opening_Prep"]
[Result "1-0"]
[WhiteElo "2598"]
[BlackElo "2356"]
[TimeControl "180+1"]
[EndTime "10:55:49 PDT"]
[Termination "ALeks_Ivlev won by checkmate"]

1. d4 {[%clk 0:03:00.9]} 1... Nf6 {[%clk 0:02:58.3]} 2. c4 {[%clk 0:03:01.3]}
2... e6 {[%clk 0:02:58.1]} 3. Nf3 {[%clk 0:03:00.3]} 3... a6 {[%clk 0:02:56.9]}
4. Nc3 {[%clk 0:02:59.7]} 4... d5 {[%clk 0:02:56.9]} 5. cxd5 {[%clk 0:03:00.3]}
5... exd5 {[%clk 0:02:56.6]} 6. Bg5 {[%clk 0:03:00.7]} 6... c6 {[%clk
0:02:54.4]} 7. e3 {[%clk 0:03:00.7]} 7... Bf5 {[%clk 0:02:52.6]} 8. Bd3 {[%clk
0:02:58.2]} 8... Bxd3 {[%clk 0:02:52.4]} 9. Qxd3 {[%clk 0:02:59.1]} 9... Nbd7
{[%clk 0:02:51.8]} 10. O-O {[%clk 0:02:57.6]} 10... Be7 {[%clk 0:02:45.5]} 11.
Rab1 {[%clk 0:02:57.5]} 11... a5 {[%clk 0:02:39.6]} 12. a3 {[%clk 0:02:57]}
12... O-O {[%clk 0:02:33.1]} 13. b4 {[%clk 0:02:56.2]} 13... b5 {[%clk
0:02:33.3]} 14. Rfc1 {[%clk 0:02:52]} 14... Ne4 {[%clk 0:02:22.3]} 15. Bxe7
{[%clk 0:02:42.3]} 15... Qxe7 {[%clk 0:02:23.2]} 16. Ne2 {[%clk 0:02:41.4]}
16... Rfc8 {[%clk 0:02:19]} 17. bxa5 {[%clk 0:02:34.7]} 17... Rxa5 {[%clk
0:01:58.7]} 18. Rb3 {[%clk 0:02:33.4]} 18... Nb6 {[%clk 0:01:52.2]} 19. Ne5
{[%clk 0:01:52.8]} 19... Nc4 {[%clk 0:01:51.4]} 20. f3 {[%clk 0:01:51]} 20...
Ned6 {[%clk 0:01:48.9]} 21. Kf2 {[%clk 0:01:44.6]} 21... Nxe5 {[%clk 0:01:46.1]}
22. dxe5 {[%clk 0:01:43.1]} 22... Qxe5 {[%clk 0:01:47]} 23. Nd4 {[%clk
0:01:31.2]} 23... Nc4 {[%clk 0:01:35.3]} 24. g3 {[%clk 0:01:25.2]} 24... h6
{[%clk 0:01:33.1]} 25. Qf1 {[%clk 0:01:19.6]} 25... Nd2 {[%clk 0:01:02]} 26. Qh3
{[%clk 0:01:18]} 26... Qe8 {[%clk 0:00:55.9]} 27. Rd3 {[%clk 0:01:06.1]} 27...
Nc4 {[%clk 0:00:55.5]} 28. Nf5 {[%clk 0:01:04.8]} 28... Kh7 {[%clk 0:00:46.1]}
29. Rcc3 {[%clk 0:00:35]} 29... Rca8 {[%clk 0:00:44.4]} 30. Rd4 {[%clk
0:00:27.7]} 30... Rxa3 {[%clk 0:00:43.2]} 31. Rxa3 {[%clk 0:00:24]} 31... Rxa3
{[%clk 0:00:44.1]} 32. Rg4 {[%clk 0:00:24]} 32... Ra2+ {[%clk 0:00:41.3]} 33.
Ke1 {[%clk 0:00:23.2]} 33... Ra1+ {[%clk 0:00:19.6]} 34. Ke2 {[%clk 0:00:22.2]}
34... Qe6 {[%clk 0:00:11.7]} 35. Rxg7+ {[%clk 0:00:19.9]} 35... Kh8 {[%clk
0:00:12]} 36. Qg4 {[%clk 0:00:20]} 36... Ra2+ {[%clk 0:00:10.8]} 37. Kf1 {[%clk
0:00:20.3]} 37... Ra1+ {[%clk 0:00:07.2]} 38. Kg2 {[%clk 0:00:20.2]} 38... Ra2+
{[%clk 0:00:07]} 39. Kh3 {[%clk 0:00:20.3]} 39... Qf6 {[%clk 0:00:07.4]} 40.
Rg8+ {[%clk 0:00:20.1]} 40... Kh7 {[%clk 0:00:07.8]} 41. Rg7+ {[%clk 0:00:20.2]}
41... Kh8 {[%clk 0:00:08.1]} 42. Qh5 {[%clk 0:00:18.5]} 42... Ne5 {[%clk
0:00:07.6]} 43. f4 {[%clk 0:00:17.8]} 43... Ng6 {[%clk 0:00:07.6]} 44. Qxh6#
{[%clk 0:00:18.1]} 1-0

[Event "*** Titled Tuesday Blitz"]
[Site "Chess.com"]
[Date "2020.05.12"]
[Round "5"]
[White "FMalexhdez"]
[Black "Tashik"]
[Result "0-1"]
[WhiteElo "2041"]
[BlackElo "2448"]
[TimeControl "180+1"]
[EndTime "10:55:49 PDT"]
[Termination "Tashik won by resignation"]

1. e4 {[%clk 0:03:00.9]} 1... e5 {[%clk 0:02:59.7]} 2. Nf3 {[%clk 0:03:00.7]}
2... Nc6 {[%clk 0:03:00.2]} 3. Bc4 {[%clk 0:03:00.4]} 3... Bc5 {[%clk
0:02:59.4]} 4. d3 {[%clk 0:02:57.2]} 4... Nf6 {[%clk 0:02:59.8]} 5. O-O {[%clk
0:02:57.6]} 5... O-O {[%clk 0:02:56.9]} 6. c3 {[%clk 0:02:57.1]} 6... d5 {[%clk
0:02:56.8]} 7. exd5 {[%clk 0:02:55.9]} 7... Nxd5 {[%clk 0:02:57.7]} 8. Re1
{[%clk 0:02:54.6]} 8... Bg4 {[%clk 0:02:57.7]} 9. h3 {[%clk 0:02:48.8]} 9... Bh5
{[%clk 0:02:57.8]} 10. Nbd2 {[%clk 0:02:41.3]} 10... Nb6 {[%clk 0:02:56.1]} 11.
Bb5 {[%clk 0:02:21.6]} 11... f6 {[%clk 0:02:56.1]} 12. Ne4 {[%clk 0:02:18]}
12... Be7 {[%clk 0:02:56.1]} 13. Ng3 {[%clk 0:02:16]} 13... Bg6 {[%clk
0:02:56.4]} 14. d4 {[%clk 0:02:07.4]} 14... exd4 {[%clk 0:02:51.1]} 15. Bxc6
{[%clk 0:02:03.7]} 15... bxc6 {[%clk 0:02:52]} 16. Nxd4 {[%clk 0:02:03.2]} 16...
Qd7 {[%clk 0:02:45.6]} 17. Ne6 {[%clk 0:01:55.8]} 17... Qxd1 {[%clk 0:02:32.1]}
18. Rxd1 {[%clk 0:01:55.3]} 18... Rfc8 {[%clk 0:02:33]} 19. Bf4 {[%clk
0:01:54.4]} 19... Nd5 {[%clk 0:02:31.9]} 20. Bd2 {[%clk 0:01:45.6]} 20... Bd6
{[%clk 0:02:08.4]} 21. c4 {[%clk 0:01:43.3]} 21... Ne7 {[%clk 0:01:56.8]} 22.
Bc3 {[%clk 0:01:37.4]} 22... Bf7 {[%clk 0:01:37.3]} 23. Re1 {[%clk 0:01:35.1]}
23... Bxg3 {[%clk 0:01:33.2]} 24. fxg3 {[%clk 0:01:34.2]} 24... Nf5 {[%clk
0:01:33.7]} 25. g4 {[%clk 0:01:29]} 25... Nd6 {[%clk 0:01:33.6]} 26. c5 {[%clk
0:01:25]} 26... Nb5 {[%clk 0:01:27.8]} 27. Ba5 {[%clk 0:01:14.3]} 27... Re8
{[%clk 0:01:01]} 28. Nxc7 {[%clk 0:01:11.1]} 28... Nxc7 {[%clk 0:00:56.1]} 29.
Bxc7 {[%clk 0:01:09]} 29... Rxe1+ {[%clk 0:00:54.2]} 30. Rxe1 {[%clk 0:01:07.8]}
30... Bxa2 {[%clk 0:00:54.8]} 31. Ra1 {[%clk 0:00:52.6]} 31... Bd5 {[%clk
0:00:51.1]} 32. Bb6 {[%clk 0:00:50.2]} 32... a6 {[%clk 0:00:50.6]} 33. b4 {[%clk
0:00:46.3]} 33... Re8 {[%clk 0:00:44.3]} 34. Rf1 {[%clk 0:00:37.4]} 34... Re4
{[%clk 0:00:37.5]} 35. Ba5 {[%clk 0:00:35.8]} 35... Kf7 {[%clk 0:00:30.3]} 36.
Rf2 {[%clk 0:00:31.9]} 36... Kg6 {[%clk 0:00:24.9]} 37. Rb2 {[%clk 0:00:25.8]}
37... h5 {[%clk 0:00:22.6]} 38. gxh5+ {[%clk 0:00:24.8]} 38... Kxh5 {[%clk
0:00:23.5]} 39. Bc7 {[%clk 0:00:23.7]} 39... g5 {[%clk 0:00:19.3]} 40. Kf2
{[%clk 0:00:21.8]} 40... f5 {[%clk 0:00:19.3]} 41. Bd6 {[%clk 0:00:18.7]} 41...
f4 {[%clk 0:00:19.1]} 42. Bc7 {[%clk 0:00:17.2]} 42... Rc4 {[%clk 0:00:16.5]}
43. Bd6 {[%clk 0:00:16.6]} 43... Rc3 {[%clk 0:00:16]} 44. Be5 {[%clk 0:00:13.8]}
44... Rg3 {[%clk 0:00:15.9]} 45. Bd6 {[%clk 0:00:11.7]} 45... Rxg2+ {[%clk
0:00:15.8]} 0-1

[Event "*** Titled Tuesday Blitz"]
[Site "Chess.com"]
[Date "2020.05.12"]
[Round "5"]
[White "AtabayevSaparmyrat"]
[Black "TargetA"]
[Result "0-1"]
[WhiteElo "2717"]
[BlackElo "2576"]
[TimeControl "180+1"]
[EndTime "10:55:50 PDT"]
[Termination "TargetA won on time"]

1. d4 {[%clk 0:03:00]} 1... Nf6 {[%clk 0:02:59]} 2. c4 {[%clk 0:02:59.4]} 2...
g6 {[%clk 0:02:59.1]} 3. Nc3 {[%clk 0:02:55.9]} 3... Bg7 {[%clk 0:02:59]} 4. e4
{[%clk 0:02:56]} 4... d6 {[%clk 0:02:59.6]} 5. Nf3 {[%clk 0:02:56.5]} 5... O-O
{[%clk 0:03:00.4]} 6. Be2 {[%clk 0:02:56.4]} 6... e5 {[%clk 0:03:00.8]} 7. dxe5
{[%clk 0:02:54.8]} 7... dxe5 {[%clk 0:03:00.4]} 8. Qxd8 {[%clk 0:02:55.7]} 8...
Rxd8 {[%clk 0:03:00.9]} 9. Bg5 {[%clk 0:02:56.6]} 9... Na6 {[%clk 0:01:43.3]}
10. Nxe5 {[%clk 0:02:37.4]} 10... Re8 {[%clk 0:01:38.9]} 11. f4 {[%clk
0:02:11.3]} 11... Nc5 {[%clk 0:01:36.6]} 12. Bf3 {[%clk 0:01:55.2]} 12... Nfxe4
{[%clk 0:01:18.7]} 13. Nxe4 {[%clk 0:01:55.2]} 13... Nxe4 {[%clk 0:01:14.7]} 14.
Bxe4 {[%clk 0:01:56.1]} 14... Bxe5 {[%clk 0:01:13.3]} 15. fxe5 {[%clk
0:01:43.3]} 15... Rxe5 {[%clk 0:01:12.8]} 16. O-O-O {[%clk 0:01:38.2]} 16...
Rxg5 {[%clk 0:01:08.9]} 17. Rd8+ {[%clk 0:01:37.3]} 17... Kg7 {[%clk 0:01:08.7]}
18. Rf1 {[%clk 0:01:34.3]} 18... Re5 {[%clk 0:00:53.6]} 19. Bd5 {[%clk
0:01:33.1]} 19... Re7 {[%clk 0:00:53.7]} 20. h4 {[%clk 0:01:27]} 20... c6 {[%clk
0:00:53.1]} 21. Bf3 {[%clk 0:01:24.8]} 21... Rc7 {[%clk 0:00:50.4]} 22. Re1
{[%clk 0:01:22.6]} 22... h5 {[%clk 0:00:29]} 23. Ree8 {[%clk 0:01:21]} 23... a5
{[%clk 0:00:29.5]} 24. c5 {[%clk 0:01:19.7]} 24... a4 {[%clk 0:00:29]} 25. Kd2
{[%clk 0:01:16.5]} 25... Kf6 {[%clk 0:00:29.2]} 26. Kc3 {[%clk 0:01:14]} 26...
Ra5 {[%clk 0:00:21.5]} 27. Rxc8 {[%clk 0:01:10.8]} 27... Rxc8 {[%clk 0:00:21.6]}
28. Rxc8 {[%clk 0:01:11.7]} 28... Rxc5+ {[%clk 0:00:22.2]} 29. Kd3 {[%clk
0:01:10.3]} 29... Rb5 {[%clk 0:00:20.5]} 30. Ra8 {[%clk 0:01:09.5]} 30... Rb4
{[%clk 0:00:18.6]} 31. Ra7 {[%clk 0:01:06.7]} 31... b5 {[%clk 0:00:14.8]} 0-1

[Event "*** Titled Tuesday Blitz"]
[Site "Chess.com"]
[Date "2020.05.12"]
[Round "5"]
[White "Redbandit87"]
[Black "manuellarrea"]
[Result "1/2-1/2"]
[WhiteElo "2367"]
[BlackElo "2204"]
[TimeControl "180+1"]
[EndTime "10:55:50 PDT"]
[Termination "Game drawn by repetition"]

1. d4 {[%clk 0:03:00.9]} 1... Nf6 {[%clk 0:02:59.4]} 2. Bf4 {[%clk 0:02:53]}
2... d5 {[%clk 0:02:57.8]} 3. e3 {[%clk 0:02:52.9]} 3... e6 {[%clk 0:02:56.9]}
4. Nd2 {[%clk 0:02:51.5]} 4... Bd6 {[%clk 0:02:53.1]} 5. Bg3 {[%clk 0:02:51.5]}
5... O-O {[%clk 0:02:51.4]} 6. Bd3 {[%clk 0:02:51]} 6... c5 {[%clk 0:02:50.9]}
7. c3 {[%clk 0:02:49.5]} 7... Nc6 {[%clk 0:02:50.2]} 8. Bxd6 {[%clk 0:02:46.9]}
8... Qxd6 {[%clk 0:02:49]} 9. f4 {[%clk 0:02:47.8]} 9... b6 {[%clk 0:02:46.4]}
10. a3 {[%clk 0:02:44.9]} 10... cxd4 {[%clk 0:02:37.7]} 11. cxd4 {[%clk
0:02:44.8]} 11... a5 {[%clk 0:02:34.9]} 12. Qe2 {[%clk 0:02:44.8]} 12... Ne7
{[%clk 0:02:26.3]} 13. Ngf3 {[%clk 0:02:41.6]} 13... Bb7 {[%clk 0:02:15.2]} 14.
Ne5 {[%clk 0:02:40.1]} 14... Ne4 {[%clk 0:02:13.3]} 15. Nxe4 {[%clk 0:02:35.8]}
15... dxe4 {[%clk 0:02:12.6]} 16. Bb5 {[%clk 0:02:35.4]} 16... f6 {[%clk
0:02:03]} 17. Nc4 {[%clk 0:02:34.9]} 17... Qd8 {[%clk 0:01:57.3]} 18. O-O {[%clk
0:02:33.6]} 18... Nf5 {[%clk 0:01:47.9]} 19. Nd2 {[%clk 0:02:26.1]} 19... Nd6
{[%clk 0:01:42.9]} 20. Rfc1 {[%clk 0:02:19.3]} 20... Rc8 {[%clk 0:01:37.7]} 21.
Ba6 {[%clk 0:02:13.9]} 21... Rxc1+ {[%clk 0:01:26]} 22. Rxc1 {[%clk 0:02:07.7]}
22... Qa8 {[%clk 0:01:25.9]} 23. Bxb7 {[%clk 0:02:02.1]} 23... Qxb7 {[%clk
0:01:25.8]} 24. h3 {[%clk 0:01:51.1]} 24... Rc8 {[%clk 0:01:24.3]} 25. Qd1
{[%clk 0:01:50.5]} 25... h5 {[%clk 0:01:01]} 26. Rc3 {[%clk 0:01:41.3]} 26...
Rxc3 {[%clk 0:00:59.2]} 27. bxc3 {[%clk 0:01:42.2]} 27... Qc6 {[%clk 0:00:56.2]}
28. Qb3 {[%clk 0:01:41.4]} 28... Nf5 {[%clk 0:00:43.5]} 29. Kf2 {[%clk
0:01:35.3]} 29... a4 {[%clk 0:00:38.4]} 30. Qc4 {[%clk 0:01:31.6]} 30... Qxc4
{[%clk 0:00:33.2]} 31. Nxc4 {[%clk 0:01:32.5]} 31... b5 {[%clk 0:00:31.7]} 32.
Nd2 {[%clk 0:01:21.4]} 32... Nd6 {[%clk 0:00:31.3]} 33. g4 {[%clk 0:01:10.7]}
33... hxg4 {[%clk 0:00:29.9]} 34. hxg4 {[%clk 0:01:10.6]} 34... Kf7 {[%clk
0:00:25.3]} 35. Kg3 {[%clk 0:01:10.3]} 35... g5 {[%clk 0:00:19.6]} 36. fxg5
{[%clk 0:00:58.4]} 36... fxg5 {[%clk 0:00:19]} 37. Kf2 {[%clk 0:00:55.2]} 37...
Kf6 {[%clk 0:00:16.6]} 38. Ke2 {[%clk 0:00:53.9]} 38... Ke7 {[%clk 0:00:15.8]}
39. Kd1 {[%clk 0:00:53.7]} 39... Kd7 {[%clk 0:00:15.4]} 40. Kc2 {[%clk
0:00:53.2]} 40... Kc6 {[%clk 0:00:15.2]} 41. c4 {[%clk 0:00:32.2]} 41... Nxc4
{[%clk 0:00:13.7]} 42. Nxc4 {[%clk 0:00:24.7]} 42... bxc4 {[%clk 0:00:12.7]} 43.
Kc3 {[%clk 0:00:24.8]} 43... Kb5 {[%clk 0:00:11.1]} 44. Kb2 {[%clk 0:00:25]}
44... Kb6 {[%clk 0:00:10.7]} 45. Kc2 {[%clk 0:00:24.6]} 45... Kc6 {[%clk
0:00:10.3]} 46. Kd2 {[%clk 0:00:24.3]} 46... Kb6 {[%clk 0:00:10]} 47. Kc3 {[%clk
0:00:21.2]} 47... Kb5 {[%clk 0:00:09.5]} 48. Kc2 {[%clk 0:00:21.5]} 48... Kc6
{[%clk 0:00:09.1]} 1/2-1/2